fUST/lending_fUST_20250916
["ID","MTS","AMOUNT","RATE_DAILY","PERIOD"]
[385740203,1757998250186,-2021.40567582,0.00022616,2]
[385740204,1757998250196,-2000.0,0.00022616,2]
[385740205,1757998250205,-2000.0,0.00022616,2]
[385740206,1757998250214,-1500.0,0.00022616,2]
[385740207,1757998250226,-2000.0,0.00022616,2]
[385740208,1757998250235,-497.72056922,0.00022632,2]
[385740209,1757998250245,-348.0,0.00022703,2]
[385740210,1757998250254,-303.0,0.00022703,2]
[385740211,1757998250267,-420.0,0.00022703,2]
[385740212,1757998250276,-160.0,0.00022708,2]
[385740213,1757998250285,-501.17687178,0.00022721,2]
[385740214,1757998250295,-505.12923683,0.00022721,2]
[385740215,1757998250304,-472.77516837,0.00022739,3]
[385740216,1757998250314,-325.96086701,0.00022739,3]
[385740217,1757998250323,-214.38122862,0.00022739,3]
[385740218,1757998250332,-480.0,0.00022739,3]
[385740219,1757998250341,-480.0,0.00022739,3]
[385740220,1757998250350,-468.24274041,0.00022739,3]
[385740221,1757998250359,-468.15418675,0.00022739,3]
[385740222,1757998250368,-368.58497926,0.00022739,3]
[385740223,1757998250378,-247.27819196,0.00022739,3]
[385740224,1757998250387,-480.0,0.00022739,3]
[385740225,1757998250396,-480.0,0.00022739,3]
[385740226,1757998250407,-480.0,0.00022739,3]
[385740227,1757998250415,-480.0,0.00022739,3]
[385740228,1757998250424,-480.0,0.00022739,3]
[385740229,1757998250433,-243.69315676,0.00022739,3]
[385740230,1757998250442,-480.0,0.00022739,3]
[385740231,1757998250451,-176.07166876,0.00022739,3]
[385740232,1757998250461,-480.0,0.00022739,3]
[385740233,1757998250471,-243.29623334,0.00022739,3]
[385740234,1757998250484,-480.0,0.00022739,3]
[385740235,1757998250495,-480.0,0.00022739,3]
[385740236,1757998250504,-480.0,0.00022739,3]
[385740237,1757998250515,-480.0,0.00022739,3]
[385740238,1757998250524,-171.55262148,0.00022739,3]
[385740239,1757998250533,-510.07586565,0.00022739,3]
[385740240,1757998250542,-480.0,0.00022739,3]
[385740241,1757998250551,-480.0,0.00022739,3]
[385740242,1757998250560,-480.0,0.00022739,3]
[385740243,1757998250569,-480.0,0.00022739,3]
[385740244,1757998250580,-480.0,0.00022739,3]
[385740245,1757998250589,-480.0,0.00022739,3]
[385740246,1757998250599,-480.0,0.00022739,3]
[385740247,1757998250609,-480.54225241,0.00022739,3]
[385740248,1757998250618,-480.0,0.00022739,3]
[385740249,1757998250627,-940.86,0.00022739,3]
[385740250,1757998250636,-480.0,0.00022739,3]
[385740251,1757998250645,-480.0,0.00022739,3]
[385740252,1757998250655,-480.0,0.00022739,3]
[385740253,1757998250664,-617.56203235,0.00022739,3]
[385740254,1757998250673,-502.74,0.00022739,3]
[385740255,1757998250682,-480.0,0.00022739,3]
[385740256,1757998250692,-480.0,0.00022739,3]
[385740257,1757998250701,-480.0,0.00022739,3]
[385740258,1757998250710,-480.0,0.00022739,3]
[385740259,1757998250719,-480.0,0.00022739,3]
[385740260,1757998250728,-480.0,0.00022739,3]
[385740261,1757998250737,-480.0,0.00022739,3]
[385740262,1757998250746,-345.27893656,0.00022739,3]
[385740263,1757998250755,-4010.59,0.00022739,3]
[385740264,1757998250765,-480.0,0.00022739,3]
[385740265,1757998250774,-480.0,0.00022739,3]
[385740266,1757998250783,-480.0,0.00022739,3]
[385740267,1757998250792,-480.0,0.00022739,3]
[385740268,1757998250801,-480.0,0.00022739,3]
[385740269,1757998250810,-480.0,0.00022739,3]
[385740270,1757998250819,-480.0,0.00022739,3]
[385740271,1757998250828,-480.0,0.00022739,3]
[385740272,1757998250838,-508.33,0.00022739,3]
[385740273,1757998250847,-480.0,0.00022739,3]
[385740274,1757998250856,-346.0357999,0.00022739,3]
[385740275,1757998250865,-480.0,0.00022739,3]
[385740276,1757998250873,-552.81,0.00022739,3]
[385740277,1757998250882,-480.0,0.00022739,3]
[385740278,1757998250891,-480.0,0.00022739,3]
[385740279,1757998250900,-480.0,0.00022739,3]
[385740280,1757998250909,-338.27722451,0.00022739,3]
[385740281,1757998250981,-480.0,0.00022739,3]
[385740282,1757998250998,-480.0,0.00022739,3]
[385740283,1757998251007,-480.0,0.00022739,3]
[385740284,1757998251016,-1472.95,0.00022739,3]
[385740285,1757998251026,-480.0,0.00022739,3]
[385740286,1757998251035,-480.0,0.00022739,3]
[385740287,1757998251044,-480.0,0.00022739,3]
[385740288,1757998251053,-480.0,0.00022739,3]
[385740289,1757998251062,-480.0,0.00022739,3]
[385740290,1757998251072,-480.0,0.00022739,3]
[385740291,1757998251081,-480.0,0.00022739,3]
[385740292,1757998251090,-837.88,0.00022739,3]
[385740293,1757998251099,-253.85026314,0.00022739,3]
[385740294,1757998251108,-480.0,0.00022739,3]
[385740295,1757998251117,-480.0,0.00022739,3]
[385740296,1757998251126,-480.0,0.00022739,3]
[385740297,1757998251136,-1680.0,0.00022811,2]
[385740298,1757998251145,-800.0,0.00022914,2]
[385740299,1757998251154,-800.0,0.00022914,2]
[385740300,1757998251163,-500.0,0.00022917,2]
[385740301,1757998251172,-203.28448933,0.00022995,2]
[385740302,1757998251182,-217.86301978,0.00023,3]
[385740303,1757998251191,-847.61663983,0.00023,3]
[385740304,1757998251199,-463.36,0.00023013,3]
[385740305,1757998251208,-480.0,0.00023013,3]
[385740306,1757998251218,-480.0,0.00023013,3]
[385740307,1757998251230,-480.0,0.00023013,3]
[385740308,1757998251239,-480.0,0.00023013,3]
[385740309,1757998251248,-480.0,0.00023013,3]
[385740310,1757998251257,-480.0,0.00023013,3]
[385740311,1757998251266,-480.0,0.00023013,3]
[385740312,1757998251275,-480.0,0.00023013,3]
[385740313,1757998251284,-480.0,0.00023013,3]
[385740314,1757998251293,-480.0,0.00023013,3]
[385740315,1757998251303,-480.0,0.00023013,3]
[385740316,1757998251313,-151.4407665,0.00023013,3]
[385740317,1757998251322,-480.0,0.00023013,3]
[385740318,1757998251331,-480.0,0.00023013,3]
[385740319,1757998251340,-480.0,0.00023013,3]
[385740320,1757998251349,-480.0,0.00023013,3]
[385740321,1757998251358,-480.0,0.00023013,3]
[385740322,1757998251367,-480.0,0.00023013,3]
[385740323,1757998251377,-480.0,0.00023013,3]
[385740324,1757998251386,-940.86,0.00023013,3]
[385740325,1757998251395,-480.0,0.00023013,3]
[385740326,1757998251404,-480.0,0.00023013,3]
[385740327,1757998251413,-480.0,0.00023013,3]
[385740328,1757998251422,-502.74,0.00023013,3]
[385740329,1757998251431,-586.21496642,0.00023013,3]
[385740330,1757998251440,-480.0,0.00023013,3]
[385740331,1757998251449,-480.0,0.00023013,3]
[385740332,1757998251458,-480.0,0.00023013,3]
[385740333,1757998251467,-618.14803816,0.00023013,3]
[385740334,1757998251477,-4010.59,0.00023013,3]
[385740335,1757998251486,-500.96775839,0.00023013,3]
[385740336,1757998251496,-152.37362185,0.00023013,3]
[385740337,1757998251505,-480.0,0.00023013,3]
[385740338,1757998251514,-480.0,0.00023013,3]
[385740339,1757998251523,-480.0,0.00023013,3]
[385740340,1757998251532,-508.33,0.00023013,3]
[385740341,1757998251540,-435.63057039,0.00023013,3]
[385740342,1757998251551,-480.0,0.00023013,3]
[385740343,1757998251559,-552.81,0.00023013,3]
[385740344,1757998251568,-230.09351721,0.00023013,3]
[385740345,1757998251577,-517.37841268,0.00023013,3]
[385740346,1757998251586,-480.0,0.00023013,3]
[385740347,1757998251595,-480.0,0.00023013,3]
[385740348,1757998251604,-1472.95,0.00023013,3]
[385740349,1757998251614,-480.0,0.00023013,3]
[385740350,1757998251623,-480.0,0.00023013,3]
[385740351,1757998251632,-480.0,0.00023013,3]
[385740352,1757998251641,-480.0,0.00023013,3]
[385740353,1757998251650,-550.19069414,0.00023013,3]
[385740354,1757998251663,-837.88,0.00023013,3]
[385740355,1757998251672,-504.06395919,0.00023013,3]
[385740356,1757998251681,-480.0,0.00023013,3]
[385740357,1757998251690,-480.0,0.00023013,3]
[385740358,1757998251699,-847.61663983,0.00023076,2]
[385740359,1757998251708,-160.0,0.00023076,2]
[385740360,1757998251717,-160.0,0.00023076,2]
[385740361,1757998251733,-160.0,0.00023077,2]
[385740362,1757998251744,-160.0,0.00023077,2]
[385740363,1757998251753,-233.29513139,0.00023077,2]
[385740364,1757998251763,-160.0,0.00023081,2]
[385740365,1757998251772,-217.86301978,0.00023081,2]
[385740366,1757998251782,-2500.0,0.00023164,2]
[385740367,1757998251791,-2500.0,0.00023164,2]
[385740368,1757998251800,-2500.0,0.00023164,2]
[385740369,1757998251810,-260.0,0.00023256,2]
[385740370,1757998251819,-480.0,0.00023287,3]
[385740371,1757998251828,-480.0,0.00023287,3]
[385740372,1757998251837,-226.91457217,0.00023287,3]
[385740373,1757998251847,-480.0,0.00023287,3]
[385740374,1757998251856,-480.0,0.00023287,3]
[385740375,1757998251864,-480.0,0.00023287,3]
[385740376,1757998251874,-480.0,0.00023287,3]
[385740377,1757998251883,-480.0,0.00023287,3]
[385740378,1757998251892,-480.0,0.00023287,3]
[385740379,1757998251901,-480.0,0.00023287,3]
[385740380,1757998251911,-606.43,0.00023287,3]
[385740381,1757998251920,-480.0,0.00023287,3]
[385740382,1757998251929,-480.0,0.00023287,3]
[385740383,1757998251938,-221.87991446,0.00023287,3]
[385740384,1757998251947,-480.0,0.00023287,3]
[385740385,1757998251955,-175.29235482,0.00023287,3]
[385740386,1757998251965,-274.97982665,0.00023287,3]
[385740387,1757998251974,-480.0,0.00023287,3]
[385740388,1757998251983,-940.86,0.00023287,3]
[385740389,1757998251992,-222.28263641,0.00023287,3]
[385740390,1757998252001,-480.0,0.00023287,3]
[385740391,1757998252011,-502.74,0.00023287,3]
[385740392,1757998252020,-480.0,0.00023287,3]
[385740393,1757998252029,-480.0,0.00023287,3]
[385740394,1757998252038,-480.0,0.00023287,3]
[385740395,1757998252047,-4010.59,0.00023287,3]
[385740396,1757998252056,-480.0,0.00023287,3]
[385740397,1757998252065,-480.0,0.00023287,3]
[385740398,1757998252074,-287.93,0.00023287,3]
[385740399,1757998252083,-508.33,0.00023287,3]
[385740400,1757998252092,-480.0,0.00023287,3]
[385740401,1757998252101,-552.81,0.00023287,3]
[385740402,1757998252110,-629.95644982,0.00023287,3]
[385740403,1757998252119,-480.0,0.00023287,3]
[385740404,1757998252130,-1472.95,0.00023287,3]
[385740405,1757998252139,-480.0,0.00023287,3]
[385740406,1757998252148,-480.0,0.00023287,3]
[385740407,1757998252157,-480.0,0.00023287,3]
[385740408,1757998252166,-480.0,0.00023287,3]
[385740409,1757998252176,-837.88,0.00023287,3]
[385740410,1757998252185,-1218.96,0.00023287,2]
[385740411,1757998252194,-480.0,0.00023287,3]
[385740412,1757998252203,-384.31,0.00023287,3]
[385740413,1757998252212,-351.65494441,0.00023561,3]
[385740414,1757998252223,-450.98287705,0.00023561,3]
[385740415,1757998252233,-480.0,0.00023561,3]
[385740416,1757998252242,-480.0,0.00023561,3]
[385740417,1757998252251,-619.98921655,0.00023561,3]
[385740418,1757998252260,-460.92414144,0.00023561,3]
[385740419,1757998252270,-480.0,0.00023561,3]
[385740420,1757998252279,-330.40217785,0.00023561,3]
[385740421,1757998252288,-247.09,0.00023561,3]
[385740422,1757998252298,-596.55,0.00023561,3]
[385740423,1757998252307,-513.07,0.00023561,3]
[385740424,1757998252316,-336.38,0.00023561,3]
[385740425,1757998252325,-405.7,0.00023561,3]
[385740426,1757998252334,-940.86,0.00023561,3]
[385740427,1757998252343,-250.17,0.00023561,3]
[385740428,1757998252352,-502.74,0.00023561,3]
[385740429,1757998252361,-480.0,0.00023561,3]
[385740430,1757998252371,-249.6223451,0.00023561,3]
[385740431,1757998252380,-480.0,0.00023561,3]
[385740432,1757998252389,-4010.59,0.00023561,3]
[385740433,1757998252398,-480.0,0.00023561,3]
[385740434,1757998252408,-480.0,0.00023561,3]
[385740435,1757998252417,-508.33,0.00023561,3]
[385740436,1757998252426,-480.0,0.00023561,3]
[385740437,1757998252435,-552.81,0.00023561,3]
[385740438,1757998252445,-480.0,0.00023561,3]
[385740439,1757998252454,-1472.95,0.00023561,3]
[385740440,1757998252463,-480.0,0.00023561,3]
[385740441,1757998252472,-480.0,0.00023561,3]
[385740442,1757998252481,-480.0,0.00023561,3]
[385740443,1757998252490,-480.0,0.00023561,3]
[385740444,1757998252499,-837.88,0.00023561,3]
[385740445,1757998252509,-480.0,0.00023561,3]
[385740446,1757998252518,-168.0,0.00023588,2]
[385740447,1757998252527,-3000.0,0.00023712,2]
[385740448,1757998252536,-1512.71049064,0.00023712,2]
[385740449,1757998252546,-493.08258184,0.00023712,2]
[385740450,1757998252555,-5000.0,0.00023735,2]
[385740451,1757998252633,-168.0,0.00023762,2]
[385740452,1757998252642,-8081.52,0.000238,7]
[385740453,1757998252651,-813.69,0.000238,7]
[385740454,1757998252661,-360.0,0.00023804,2]
[385740455,1757998252670,-480.0,0.00023835,3]
[385740456,1757998252679,-554.66,0.00023835,3]
[385740457,1757998252688,-544.45613658,0.00023835,3]
[385740458,1757998252697,-940.86,0.00023835,3]
[385740459,1757998252708,-502.74,0.00023835,3]
[385740460,1757998252717,-480.0,0.00023835,3]
[385740461,1757998252726,-480.0,0.00023835,3]
[385740462,1757998252735,-4010.59,0.00023835,3]
[385740463,1757998252745,-480.0,0.00023835,3]
[385740464,1757998252754,-480.0,0.00023835,3]
[385740465,1757998252767,-508.33,0.00023835,3]
[385740466,1757998252777,-480.0,0.00023835,3]
[385740467,1757998252787,-552.81,0.00023835,3]
[385740468,1757998252796,-480.0,0.00023835,3]
[385740469,1757998252805,-1472.95,0.00023835,3]
[385740470,1757998252814,-480.0,0.00023835,3]
[385740471,1757998252823,-480.0,0.00023835,3]
[385740472,1757998252833,-480.0,0.00023835,3]
[385740473,1757998252842,-480.0,0.00023835,3]
[385740474,1757998252851,-837.88,0.00023835,3]
[385740475,1757998252860,-480.0,0.00023835,3]
[385740476,1757998252869,-168.0,0.0002388,2]
[385740477,1757998252878,-228.00000001,0.000239,2]
[385740478,1757998252888,-800.0,0.0002391,2]
[385740479,1757998252897,-800.0,0.0002391,2]
[385740480,1757998252906,-168.0,0.00023992,2]
[385740481,1757998252915,-217.86301978,0.00024,7]
[385740482,1757998252925,-168.0,0.00024081,2]
[385740483,1757998252934,-151.0,0.000241,9]
[385740484,1757998252943,-480.0,0.00024109,3]
[385740485,1757998252953,-940.86,0.00024109,3]
[385740486,1757998252962,-502.74,0.00024109,3]
[385740487,1757998252971,-509.24,0.00024109,3]
[385740488,1757998252980,-480.0,0.00024109,3]
[385740489,1757998252989,-4010.59,0.00024109,3]
[385740490,1757998252998,-425.16,0.00024109,3]
[385740491,1757998253007,-480.0,0.00024109,3]
[385740492,1757998253017,-508.33,0.00024109,3]
[385740493,1757998253026,-480.0,0.00024109,3]
[385740494,1757998253035,-552.81,0.00024109,3]
[385740495,1757998253044,-480.0,0.00024109,3]
[385740496,1757998253053,-1472.95,0.00024109,3]
[385740497,1757998253062,-480.0,0.00024109,3]
[385740498,1757998253071,-480.0,0.00024109,3]
[385740499,1757998253080,-480.0,0.00024109,3]
[385740500,1757998253089,-480.0,0.00024109,3]
[385740501,1757998253098,-837.88,0.00024109,3]
[385740502,1757998253107,-480.0,0.00024109,3]
[385740503,1757998253117,-168.0,0.00024118,2]
[385740504,1757998253126,-500.0,0.00024123,2]
[385740505,1757998253135,-4900.5517088,0.00024165,2]
[385740506,1757998253143,-168.0,0.00024191,2]
[385740507,1757998253153,-2800.0,0.00024207,2]
[385740508,1757998253162,-168.0,0.00024217,2]
[385740509,1757998253171,-3500.0,0.0002426,2]
[385740510,1757998253180,-460.0,0.00024352,2]
[385740511,1757998253190,-168.0,0.00024377,2]
[385740512,1757998253199,-480.0,0.00024383,3]
[385740513,1757998253208,-940.86,0.00024383,3]
[385740514,1757998253218,-502.74,0.00024383,3]
[385740515,1757998253232,-338.13009797,0.00024383,3]
[385740516,1757998253242,-4010.59,0.00024383,3]
[385740517,1757998253251,-480.0,0.00024383,3]
[385740518,1757998253261,-508.33,0.00024383,3]
[385740519,1757998253270,-480.0,0.00024383,3]
[385740520,1757998253279,-552.81,0.00024383,3]
[385740521,1757998253288,-480.0,0.00024383,3]
[385740522,1757998253297,-1472.95,0.00024383,3]
[385740523,1757998253307,-205.37212271,0.00024383,3]
[385740524,1757998253317,-589.68,0.00024383,3]
[385740525,1757998253326,-480.0,0.00024383,3]
[385740526,1757998253335,-480.0,0.00024383,3]
[385740527,1757998253345,-837.88,0.00024383,3]
[385740528,1757998253354,-179.69451932,0.00024398,2]
[385740529,1757998253363,-151.0,0.000245,9]
[385740530,1757998253373,-168.0,0.00024505,2]
[385740531,1757998253382,-168.0,0.00024506,2]
[385740532,1757998253393,-8664.8855432,0.00024552,2]
[385740533,1757998253404,-720.0,0.0002459,20]
[385740534,1757998253414,-300.58359745,0.00024657,2]
[385740535,1757998253423,-480.0,0.00024657,3]
[385740536,1757998253433,-940.86,0.00024657,3]
[385740537,1757998253443,-502.74,0.00024657,3]
[385740538,1757998253452,-4010.59,0.00024657,3]
[385740539,1757998253462,-480.0,0.00024657,3]
[385740540,1757998253471,-508.33,0.00024657,3]
[385740541,1757998253481,-439.60138047,0.00024657,3]
[385740542,1757998253490,-552.81,0.00024657,3]
[385740543,1757998253499,-153.78010323,0.00024657,3]
[385740544,1757998253508,-1472.95,0.00024657,3]
[385740545,1757998253518,-480.0,0.00024657,3]
[385740546,1757998253527,-480.0,0.00024657,3]
[385740547,1757998253536,-837.88,0.00024657,3]
[385740548,1757998253545,-200.0,0.00024658,15]
[385740549,1757998253555,-587.0,0.00024699,2]
[385740550,1757998253563,-177.316131,0.000248,2]
[385740551,1757998253573,-4000.0,0.00024808,2]
[385740552,1757998253582,-981.377,0.00024825,2]
[385740553,1757998253591,-636.966,0.00024825,2]
[385740554,1757998253600,-2164.097,0.00024825,2]
[385740555,1757998253609,-3004.0,0.00024825,2]
[385740556,1757998253620,-168.0,0.00024879,2]
[385740557,1757998253629,-560.0,0.00024899,2]
[385740558,1757998253638,-365242.828882,0.000249,2]
[385740559,1757998253648,-800.0,0.00024907,2]
[385740560,1757998253657,-480.0,0.00024931,3]
[385740561,1757998253667,-940.86,0.00024931,3]
[385740562,1757998253677,-502.74,0.00024931,3]
[385740563,1757998253686,-4010.59,0.00024931,3]
[385740564,1757998253695,-480.0,0.00024931,3]
[385740565,1757998253704,-508.33,0.00024931,3]
[385740566,1757998253713,-552.81,0.00024931,3]
[385740567,1757998253724,-1472.95,0.00024931,3]
[385740568,1757998253734,-480.0,0.00024931,3]
[385740569,1757998253743,-480.0,0.00024931,3]
[385740570,1757998253752,-837.88,0.00024931,3]
[385740571,1757998253763,-2351.0,0.00024935,2]
[385740572,1757998253772,-168.0,0.00024998,2]
[385740573,1757998253781,-999.999999,0.00025,2]
[385740574,1757998253790,-43999.41065569,0.00025,7]
[385740575,1757998253799,-160.0,0.00025,7]
[385740576,1757998253810,-168.0,0.00025058,2]
[385740577,1757998253822,-168.0,0.00025179,2]
[385740578,1757998253831,-480.0,0.00025205,3]
[385740579,1757998253841,-940.86,0.00025205,3]
[385740580,1757998253850,-502.74,0.00025205,3]
[385740581,1757998253859,-4010.59,0.00025205,3]
[385740582,1757998253868,-480.0,0.00025205,3]
[385740583,1757998253878,-508.33,0.00025205,3]
[385740584,1757998253888,-552.81,0.00025205,3]
[385740585,1757998253899,-1472.95,0.00025205,3]
[385740586,1757998253908,-480.0,0.00025205,3]
[385740587,1757998253919,-480.0,0.00025205,3]
[385740588,1757998253928,-837.88,0.00025205,3]
[385740589,1757998253937,-168.0,0.00025229,2]
[385740590,1757998253947,-1583.0725024,0.00025239,2]
[385740591,1757998253956,-1933.3972989,0.00025244,2]
[385740592,1757998253965,-168.0,0.00025259,2]
[385740593,1757998253974,-9586.1320239,0.00025313,2]
[385740594,1757998253983,-2438.2427545,0.00025313,2]
[385740595,1757998253993,-4500.0,0.00025356,2]
[385740596,1757998254002,-500.0,0.00025393,2]
[385740597,1757998254011,-813.69,0.000254,7]
[385740598,1757998254020,-168.0,0.00025405,2]
[385740599,1757998254029,-660.0,0.00025447,2]
[385740600,1757998254040,-173.75285733,0.00025479,3]
[385740601,1757998254051,-940.86,0.00025479,3]
[385740602,1757998254061,-502.74,0.00025479,3]
[385740603,1757998254070,-4010.59,0.00025479,3]
[385740604,1757998254079,-480.0,0.00025479,3]
[385740605,1757998254088,-508.33,0.00025479,3]
[385740606,1757998254163,-552.81,0.00025479,3]
[385740607,1757998254174,-1472.95,0.00025479,3]
[385740608,1757998254184,-480.0,0.00025479,3]
[385740609,1757998254194,-167.82,0.00025479,3]
[385740610,1757998254203,-837.88,0.00025479,3]
[385740611,1757998254213,-8081.52,0.000255,7]
[385740612,1757998254224,-1826.49,0.000256,7]
[385740613,1757998254234,-168.0,0.00025601,2]
[385740614,1757998254243,-168.0,0.00025663,2]
[385740615,1757998254253,-940.86,0.00025753,3]
[385740616,1757998254263,-502.74,0.00025753,3]
[385740617,1757998254275,-4010.59,0.00025753,3]
[385740618,1757998254285,-480.0,0.00025753,3]
[385740619,1757998254295,-508.33,0.00025753,3]
[385740620,1757998254306,-552.81,0.00025753,3]
[385740621,1757998254315,-1472.95,0.00025753,3]
[385740622,1757998254325,-480.0,0.00025753,3]
[385740623,1757998254334,-837.88,0.00025753,3]
[385740624,1757998254343,-1000.0,0.000258,14]
[385740625,1757998254354,-292.92377653,0.00025866,2]
[385740626,1757998254363,-168.0,0.00025869,2]
[385740627,1757998254372,-353.2312209,0.00025876,2]
[385740628,1757998254381,-800.0,0.00025903,2]
[385740629,1757998254391,-5000.0,0.00025904,2]
[385740630,1757998254401,-2138.9551737,0.00025952,2]
[385740631,1757998254410,-544.0454963,0.00025952,2]
[385740632,1757998254419,-760.0,0.00025995,2]
[385740633,1757998254430,-8013.26,0.00026,2]
[385740634,1757998254439,-940.86,0.00026027,3]
[385740635,1757998254449,-502.74,0.00026027,3]
[385740636,1757998254458,-4010.59,0.00026027,3]
[385740637,1757998254467,-480.0,0.00026027,3]
[385740638,1757998254476,-508.33,0.00026027,3]
[385740639,1757998254485,-552.81,0.00026027,3]
[385740640,1757998254494,-1472.95,0.00026027,3]
[385740641,1757998254503,-480.0,0.00026027,3]
[385740642,1757998254513,-1218.96,0.00026027,4]
[385740643,1757998254522,-837.88,0.00026027,3]
[385740644,1757998254532,-940.86,0.00026301,3]
[385740645,1757998254542,-502.74,0.00026301,3]
[385740646,1757998254552,-4010.59,0.00026301,3]
[385740647,1757998254562,-480.0,0.00026301,3]
[385740648,1757998254571,-508.33,0.00026301,3]
[385740649,1757998254580,-552.81,0.00026301,3]
[385740650,1757998254589,-1472.95,0.00026301,3]
[385740651,1757998254601,-480.0,0.00026301,3]
[385740652,1757998254612,-837.88,0.00026301,3]
[385740653,1757998254621,-2800.0,0.00026399,2]
[385740654,1757998254631,-2500.27064649,0.00026452,2]
[385740655,1757998254642,-209.0,0.0002653,2]
[385740656,1757998254652,-860.0,0.00026543,2]
[385740657,1757998254661,-940.86,0.00026575,3]
[385740658,1757998254670,-502.74,0.00026575,3]
[385740659,1757998254679,-4010.59,0.00026575,3]
[385740660,1757998254689,-364.59259315,0.00026575,3]
[385740661,1757998254698,-508.33,0.00026575,3]
[385740662,1757998254707,-552.81,0.00026575,3]
[385740663,1757998254716,-1472.95,0.00026575,3]
[385740664,1757998254726,-480.0,0.00026575,3]
[385740665,1757998254735,-837.88,0.00026575,3]
[385740666,1757998254744,-500.0,0.00026662,2]
[385740667,1757998254753,-916.74,0.000268,20]
[385740668,1757998254762,-940.86,0.00026849,3]
[385740669,1757998254771,-502.74,0.00026849,3]
[385740670,1757998254780,-395.74011732,0.00026849,3]
[385740671,1757998255012,-485.74591738,0.00021917,2]
[385740672,1757998255023,-480.0,0.00024383,3]
[385740673,1757998255032,-480.0,0.00024657,3]
[385740674,1757998255042,-480.0,0.00024931,3]
[385740675,1757998255052,-480.0,0.00025205,3]
[385740676,1757998255061,-480.0,0.00025479,3]
[385740677,1757998255070,-480.0,0.00025753,3]
[385740678,1757998255079,-375.73016559,0.00026027,3]
[385740679,1757998255088,-3614.84988268,0.00026849,3]
[385740680,1757998255098,-508.33,0.00026849,3]
[385740681,1757998255107,-552.81,0.00026849,3]
[385740682,1757998255116,-1472.95,0.00026849,3]
[385740683,1757998255125,-22.41870335,0.00026849,3]
[385740684,1757998262128,205.05283537,0.000199,2]
[385740687,1757998496896,9720.8644233,0.00020596,2]
[385740688,1757998589026,12801.8739781,0.00019988,2]
[385740689,1757998631945,276.76518404,0.00020176,2]
[385740691,1757998760695,-157.62398512,0.00020797,2]
[385740692,1757998762830,-142.37601488,0.00020797,2]
[385740693,1757998762854,-37.63180136,0.00020798,2]
[385740694,1757998764743,-250.0,0.00020798,2]
[385740695,1757998767804,-157.62398512,0.00020798,2]
[385740696,1757998770434,-54.74421352,0.00020798,2]
[385740697,1757998770457,-265.87777024,0.00020798,2]
[385740698,1757998773179,-233.49066903,0.00020798,2]
[385740699,1757998779873,-0.63156073,0.00020798,2]
[385740700,1757998779897,-154.12364974,0.00020798,2]
[385740701,1757998783032,-152.0,0.00020798,2]
[385740702,1757998785402,-307.96424112,0.00020798,2]
[385740703,1757998788999,-367.89372861,0.00020798,2]
[385740704,1757998793464,-151.78147644,0.00020798,2]
[385740705,1757998796803,-227.00801504,0.00020798,2]